bitfinex-derivatives/quotes_SOLF0:USTF0_20251202
["timestamp","ask_amount","ask_price","bid_price","bid_amount"]
[1764676741170,3.37104337,128.18,128.16,21.58639541]
[1764676758889,3.37104337,128.18,128.17,14.50930382]
[1764676761693,3.37104337,128.18,128.16,21.58639541]
[1764676763595,3.37104337,128.18,128.16,14.56349541]
[1764676768204,3.39,128.17,128.16,14.56349541]
[1764676768407,3.39,128.17,128.16,0.05419159]
[1764676778314,7.07314337,128.18,128.16,14.56349541]
[1764676778315,3.19104337,128.18,128.16,14.56349541]
[1764676778814,3.19104337,128.18,128.17,14.50930382]
[1764676779021,3.19104337,128.18,128.16,21.58619541]
[1764676779715,3.19104337,128.18,128.17,14.50930382]
[1764676780817,3.19104337,128.18,128.16,21.58619541]
[1764676781410,3.26,128.17,128.16,0.05419159]
[1764676781617,3.26,128.17,128.16,14.56349541]
[1764676781815,3.26,128.17,128.16,0.05419159]
[1764676782015,3.26,128.17,128.16,14.56349541]
[1764676782307,3.26,128.17,128.16,0.05419159]
[1764676782713,10.33304337,128.18,128.16,0.05419159]
[1764676783025,3.31104337,128.18,128.16,14.56349541]
[1764676784516,3.31104337,128.18,128.16,0.05419159]
[1764676785120,3.31104337,128.18,128.16,14.56349541]
[1764676787825,3.31104337,128.18,128.16,0.05419159]
[1764676788026,0.05104337,128.18,128.16,14.56349541]
[1764676789325,0.05104337,128.18,128.17,14.50930382]
[1764676789727,0.05104337,128.18,128.16,7.07679159]
[1764676790220,0.05104337,128.18,128.17,7.0224]
[1764676791531,3.26,128.24,128.16,112.4189713]
[1764676791725,3.26,128.24,128.2,14.54752673]
[1764676792230,3.26,128.24,128.19,14.54752673]
[1764676792929,3.31672113,128.23,128.2,14.60604705]
[1764676793127,3.31672113,128.23,128.2,0.05852032]
[1764676798129,3.31672113,128.23,128.2,7.07922032]
[1764676801235,10.33612113,128.23,128.2,0.05852032]
[1764676801437,3.26,128.22,128.2,0.05852032]
[1764676802035,10.2802,128.21,128.2,0.05852032]
[1764676802442,3.26,128.22,128.2,0.05852032]
[1764676805446,3.26,128.29,128.24,109.1747]
[1764676805643,3.26,128.29,128.25,14.47708724]
[1764676805839,109.0948,128.34,128.25,14.47708724]
[1764676806048,3.26,128.35,128.27,3.12277971]
[1764676806248,3.26,128.35,128.28,109.1431]
[1764676806551,3.26,128.44,128.34,109.0911]
[1764676806752,3.26,128.44,128.37,14.47708724]
[1764676806953,109.0041,128.45,128.36,21.48888724]
[1764676807250,3.26,128.43,128.36,7.0118]
[1764676807441,3.26,128.43,128.36,109.073]
[1764676807641,0.05027251,128.41,128.38,0.04930168]
[1764676808153,0.05027251,128.41,128.38,131.90335838]
[1764676808651,0.05027251,128.41,128.39,62.0]
[1764676809046,3.15027251,128.41,128.39,62.0]
[1764676810253,3.15027251,128.41,128.38,0.04930168]
[1764676812348,0.05027251,128.41,128.38,23.02959331]
[1764676812553,3.15027251,128.41,128.38,0.04930168]
[1764676814762,3.1,128.4,128.38,0.04930168]
[1764676815958,0.05027251,128.41,128.38,0.04930168]
[1764676817263,0.05027251,128.41,128.39,62.0]
[1764676817854,0.05027251,128.41,128.4,7.0098]
[1764676818052,0.05027251,128.41,128.39,62.0]
[1764676818762,0.05027251,128.41,128.38,0.04930168]
[1764676819265,0.05027251,128.41,128.38,7.05990168]
[1764676819560,0.05027251,128.41,128.38,0.04930168]
[1764676819864,3.15027251,128.41,128.38,0.04930168]
[1764676823353,10.15967251,128.41,128.38,0.04930168]
[1764676823559,3.1,128.4,128.34,66.74]
[1764676824359,3.1,128.38,128.34,66.74]
[1764676824562,3.1,128.38,128.33,7.0134]
[1764676824868,0.05736921,128.37,128.34,0.05976448]
[1764676825069,0.05438509,128.37,128.34,0.05054539]
[1764676825655,7.0087,128.43,128.35,109.0807]
[1764676825966,3.1,128.44,128.37,109.0617]
[1764676826467,3.1,128.44,128.38,62.0]
[1764676826768,3.15243052,128.42,128.4,0.05895679]
[1764676827064,3.15835025,128.42,128.4,0.05895679]
[1764676830671,0.05835025,128.42,128.4,7.06865679]
[1764676835379,3.39835025,128.42,128.4,0.05895679]
[1764676836365,0.05835025,128.42,128.4,0.05895679]
[1764676836769,0.05835025,128.42,128.4,7.06865679]
[1764676836964,3.39835025,128.42,128.4,0.05895679]
[1764676843474,3.33,128.41,128.4,0.05895679]
[1764676845582,7.06735025,128.42,128.4,0.05895679]
[1764676845583,0.05835025,128.42,128.4,9.0589303]
[1764676845779,3.38835025,128.42,128.4,0.05895679]
[1764676848871,10.3392,128.41,128.4,0.05895679]
[1764676853492,0.05835025,128.42,128.36,143.23708724]
[1764676853493,3.33,128.39,128.36,143.23708724]
[1764676853790,3.33,128.39,128.36,66.76]
[1764676853977,3.33,128.37,128.35,14.47708724]
[1764676854181,3.33,128.37,128.34,14.47708724]
[1764676854689,3.38635224,128.37,128.34,14.53035334]
[1764676854890,3.33,128.36,128.34,14.53035334]
[1764676855090,3.33,128.36,128.34,0.0532661]
[1764676855990,10.3425,128.35,128.34,0.0532661]
[1764676857383,3.33,128.35,128.34,0.0532661]
[1764676864601,10.3425,128.35,128.34,0.0532661]
[1764676864997,0.05635224,128.37,128.3,62.0]
[1764676864998,3.33,128.32,128.3,62.0]
[1764676865197,3.33,128.32,128.29,14.47708724]
[1764676865598,3.33,128.37,128.31,14.47708724]
[1764676865804,3.33,128.37,128.32,1.99027351]
[1764676866002,3.33,128.35,128.33,0.05483654]
[1764676867092,0.05735055,128.36,128.33,0.05483654]
[1764676867298,0.05735055,128.36,128.33,14.53192378]
[1764676867894,3.38735055,128.36,128.33,0.05483654]
[1764676868105,3.38735055,128.36,128.33,62.05483654]
[1764676869718,3.17,128.35,128.33,0.05483654]
[1764676870405,10.1825,128.35,128.33,0.05483654]
[1764676870607,3.17,128.35,128.33,0.05483654]
[1764676870806,3.17,128.34,128.29,14.47708724]
[1764676871007,3.17,128.34,128.26,21.38076079]
[1764676871008,7.0154,128.3,128.27,14.47708724]
[1764676871208,3.17,128.29,128.27,14.47708724]
[1764676871407,3.17,128.29,128.26,40.27594596]
[1764676871601,10.1858,128.29,128.26,14.47708724]
[1764676871807,3.17,128.28,128.24,14.47708724]
[1764676872008,3.17,128.28,128.25,0.05532285]
[1764676872315,10.1874,128.26,128.25,0.05532285]
[1764676872611,3.17,128.26,128.25,0.05532285]
[1764676873710,0.05456571,128.27,128.25,0.05532285]
[1764676874415,3.22456571,128.27,128.25,0.05532285]
[1764676875203,3.17,128.26,128.25,0.05532285]
[1764676877712,3.17,128.24,128.19,68.15680449]
[1764676878620,0.05560508,128.23,128.2,0.05221977]
[1764676878915,3.22560508,128.23,128.2,0.05221977]
[1764676880920,3.17,128.21,128.2,0.05221977]
[1764676881122,3.17,128.21,128.16,62.0]
[1764676881823,3.17,128.19,128.16,62.0]
[1764676882224,3.22003925,128.19,128.16,62.05880173]
[1764676883120,0.05003925,128.19,128.17,1.99027351]
[1764676883525,0.05003925,128.19,128.16,71.07177524]
[1764676884219,3.22003925,128.19,128.16,69.08150173]
[1764676884419,3.22003925,128.19,128.09,125.77026075]
[1764676884420,3.17,128.18,128.09,125.77026075]
[1764676884626,5.16027351,128.16,128.07,202.03486427]
[1764676884819,3.17,128.15,128.07,178.18627351]
[1764676885015,7.0242,128.14,128.09,7.0265]
[1764676885228,3.17,128.13,128.09,7.0265]
[1764676885418,3.22963773,128.12,128.1,62.0568963]
[1764676885618,3.22963773,128.12,128.1,0.0568963]
[1764676887423,0.05963773,128.12,128.1,0.0568963]
[1764676888717,0.05963773,128.12,128.1,7.0828963]
[1764676890127,0.05963773,128.12,128.1,0.0568963]
[1764676890524,3.22963773,128.12,128.1,0.0568963]
[1764676890731,10.25483773,128.12,128.1,0.0568963]
[1764676891331,3.22963773,128.12,128.1,0.0568963]
[1764676891625,0.05963773,128.12,128.1,0.0568963]
[1764676893332,3.44963773,128.12,128.1,0.0568963]
[1764676894536,0.05963773,128.12,128.1,0.0568963]
[1764676894738,3.44963773,128.12,128.1,0.0568963]
[1764676895933,0.05963773,128.12,128.1,7.0830963]
[1764676897939,3.39,128.2,128.12,109.2798]
[1764676898140,3.39,128.2,128.13,67.0]
[1764676898534,10.1713,128.19,128.13,74.0241]
[1764676898736,3.15,128.18,128.13,74.0241]
[1764676899044,3.20281494,128.17,128.14,0.05048299]
[1764676900340,3.20281494,128.17,128.14,7.07448299]
[1764676901843,3.20281494,128.17,128.14,0.05048299]
[1764676905135,10.22531494,128.17,128.14,0.05048299]
[1764676905333,3.20281494,128.17,128.14,0.05048299]
[1764676905544,3.20281494,128.17,128.11,7.0254]
[1764676906042,3.15,128.14,128.11,7.0254]
[1764676906748,3.20355258,128.14,128.11,7.08327154]
[1764676907249,10.22785258,128.14,128.11,0.05787154]
[1764676907548,3.15,128.13,128.11,0.05787154]
[1764676908551,10.1751,128.12,128.11,0.05787154]
[1764676908951,3.15,128.11,128.07,7.0274]
[1764676909946,0.05043485,128.1,128.08,0.05632238]
[1764676910650,0.05043485,128.1,128.09,7.0268]
[1764676910856,3.15,128.16,128.08,176.40812238]
[1764676911047,3.15,128.16,128.08,176.3518]
[1764676911744,0.05931188,128.13,128.12,7.0251]
[1764676913056,0.05931188,128.13,128.11,0.05147461]
[1764676913445,0.05931188,128.13,128.11,7.07697461]
[1764676914247,0.05931188,128.13,128.12,7.0251]
[1764676916149,4.67392,128.17,128.12,129.02]
[1764676916449,3.15,128.16,128.12,129.02]
[1764676916652,3.15,128.16,128.12,67.02]
[1764676917045,3.15,128.16,128.13,7.0244]
[1764676917241,3.20425663,128.15,128.13,7.0244]
[1764676917442,3.20425663,128.15,128.13,7.08053779]
[1764676919752,3.20425663,128.15,128.13,69.08053779]
[1764676920154,0.05425663,128.15,128.14,7.024]
[1764676922762,3.20425663,128.15,128.13,62.05613779]
[1764676923061,3.20425663,128.15,128.13,0.05613779]
[1764676924162,0.05425663,128.15,128.13,0.05613779]
[1764676925757,3.20425663,128.15,128.13,0.05613779]
[1764676927561,0.05425663,128.15,128.13,0.05613779]
[1764676928366,0.05425663,128.15,128.13,14.53322503]
[1764676928558,0.05425663,128.15,128.13,0.05613779]
[1764676928963,0.05425663,128.15,128.14,62.0]
[1764676929762,3.44425663,128.15,128.14,62.0]
[1764676931861,3.44425663,128.15,128.13,14.53322503]
[1764676937281,0.05425663,128.15,128.13,21.55752503]
[1764676937577,0.05425663,128.15,128.14,14.47708724]
[1764676938162,3.44425663,128.15,128.14,14.47708724]
[1764676938369,3.44425663,128.15,128.13,14.53322503]
[1764676940978,3.44425663,128.15,128.14,14.47708724]
[1764676941279,3.44425663,128.15,128.13,14.53322503]
[1764676943483,3.44425663,128.15,128.14,14.47708724]
[1764676944183,3.44425663,128.15,128.13,14.53322503]
[1764676944581,3.44425663,128.15,128.14,14.47708724]
[1764676954086,10.46775663,128.15,128.14,14.47708724]
[1764676958800,10.46775663,128.15,128.13,14.53322503]
[1764676958985,3.13,128.14,128.13,14.53322503]
[1764676959598,0.05425663,128.15,128.13,7.08053779]
[1764676959994,0.05425663,128.15,128.14,14.54303281]
[1764676961395,0.05425663,128.15,128.13,7.08053779]
[1764676962490,0.05425663,128.15,128.13,0.05613779]
[1764676962683,0.05425663,128.15,128.13,62.05613779]
[1764676963486,1.52392,128.17,128.14,1.99934481]
[1764676963797,3.13,128.22,128.16,21.38983209]
[1764676964093,7.0205,128.21,128.19,14.52823516]
[1764676964294,10.1505,128.21,128.19,14.52823516]
[1764676964598,10.20580322,128.21,128.19,14.58731164]
[1764676965090,10.20580322,128.21,128.19,0.05907648]
[1764676966891,3.18530322,128.21,128.19,0.05907648]
[1764676969400,10.20600322,128.21,128.19,0.05907648]
[1764676969699,3.13,128.2,128.19,0.05907648]
[1764676970095,10.1507,128.2,128.19,0.05907648]
[1764676971001,3.13,128.2,128.19,0.05907648]
[1764676971905,10.1507,128.2,128.19,0.05907648]
[1764676973695,3.13,128.17,128.15,81.40823516]
[1764676973899,3.13,128.17,128.14,14.52823516]
[1764676974200,7.0235,128.15,128.14,14.52823516]
[1764676975000,10.1535,128.15,128.13,14.57970264]
[1764676975601,7.0235,128.15,128.13,14.57970264]
[1764676976199,3.18559785,128.16,128.13,14.57970264]
[1764676977399,10.20859785,128.16,128.13,14.57970264]
[1764676978900,10.20859785,128.16,128.14,14.52823516]
[1764676980806,0.05559785,128.16,128.15,14.52823516]
[1764676984006,0.05559785,128.16,128.15,76.52823516]
[1764676984314,0.05559785,128.16,128.15,83.55173516]
[1764676985425,0.05559785,128.16,128.15,7.0235]
[1764676985807,0.05559785,128.16,128.15,9.02284481]
[1764676986516,0.05559785,128.16,128.15,23.52762601]
[1764676986909,0.05559785,128.16,128.15,9.02284481]
[1764676987708,0.05559785,128.16,128.15,23.52582717]
[1764676987908,0.05559785,128.16,128.15,9.02284481]
[1764676988414,0.05559785,128.16,128.15,71.02284481]
[1764676989412,0.05559785,128.16,128.15,9.02284481]
[1764676991515,0.05559785,128.16,128.14,7.024]
[1764676991716,0.05559785,128.16,128.15,14.50066567]
[1764676992119,0.05559785,128.16,128.15,7.0235]
[1764676992323,0.05559785,128.16,128.15,9.02284481]
[1764676992530,3.23,128.22,128.15,130.83934481]
[1764676992815,3.23,128.21,128.17,21.51728403]
[1764676993522,3.28956319,128.2,128.18,0.05962619]
[1764676994317,10.31056319,128.2,128.18,0.05962619]
[1764676994518,3.23,128.19,128.18,0.05962619]
[1764676998226,0.05956319,128.2,128.18,0.05962619]
[1764676998423,3.28956319,128.2,128.18,0.05962619]
[1764677000315,3.28956319,128.2,128.18,7.08142619]
[1764677001129,3.23,128.18,128.17,12.81102776]
[1764677001321,3.23,128.18,128.16,12.81102776]
[1764677001521,3.23,128.18,128.15,7.0229]
[1764677002329,3.23,128.17,128.15,7.07815933]
[1764677002535,3.2881835,128.17,128.15,7.07815933]
[1764677004835,3.2881835,128.17,128.15,0.05525933]
[1764677012636,3.33,128.19,128.15,0.05525933]
[1764677013232,3.33,128.19,128.16,7.0224]
[1764677013632,3.38240361,128.19,128.16,7.0224]
[1764677015036,3.38240361,128.19,128.15,19.44574661]
[1764677015037,3.38240361,128.19,128.17,7.0223]
[1764677015231,0.05240361,128.19,128.17,7.0223]
[1764677017439,3.38240361,128.19,128.17,7.0223]
[1764677019244,0.05240361,128.19,128.18,7.0218]
[1764677020238,3.16,128.22,128.19,7.021]
[1764677021143,3.16,128.22,128.21,14.52296737]
[1764677021341,3.21556627,128.22,128.21,14.52296737]
[1764677022143,3.21556627,128.22,128.2,14.52296737]
[1764677026950,0.05556627,128.22,128.2,21.54346737]
[1764677027851,10.179,128.24,128.21,21.54316737]
[1764677027852,3.16,128.24,128.21,21.54316737]
[1764677028345,3.16,128.24,128.22,14.52296737]
[1764677028944,3.21937351,128.24,128.22,14.57578783]
[1764677029443,3.21937351,128.24,128.22,0.05282046]
[1764677033544,3.21937351,128.24,128.22,0.00282046]
[1764677033745,3.16,128.21,128.18,21.54466737]
[1764677034752,3.16,128.2,128.18,14.57357483]
[1764677034951,3.16,128.2,128.18,0.05060746]
[1764677035354,3.16,128.2,128.16,14.52296737]
[1764677035544,3.16,128.2,128.15,14.52296737]
[1764677035945,193.14056942,128.24,128.15,21.54626737]
[1764677035946,3.16,128.19,128.15,21.54626737]
[1764677036655,0.04951014,128.18,128.16,0.04971759]
[1764677038158,3.20951014,128.18,128.16,0.04971759]
[1764677038854,3.20951014,128.18,128.16,14.57268496]
[1764677040250,0.04951014,128.18,128.16,21.59548496]
[1764677040451,0.04951014,128.18,128.16,14.57268496]
[1764677040651,0.04951014,128.18,128.17,14.52296737]
[1764677041352,0.04951014,128.18,128.17,21.54536737]
[1764677045346,0.04951014,128.18,128.17,7.0224]
[1764677046560,3.16,128.22,128.19,7.0212]
[1764677047555,3.16,128.22,128.19,7.07249353]
[1764677047771,3.21840249,128.22,128.19,7.07249353]
[1764677050166,3.21840249,128.22,128.2,7.0207]
[1764677051069,0.05840249,128.22,128.21,7.0202]
[1764677054869,3.38,128.26,128.21,109.2033]
[1764677055063,3.38,128.26,128.22,14.46412835]
[1764677055962,3.43824497,128.25,128.23,0.05989117]
[1764677056163,3.42921593,128.25,128.23,0.0547008]
[1764677056570,3.42921593,128.25,128.24,7.0185]
[1764677057568,3.42921593,128.25,128.23,7.0737008]
[1764677058067,0.04921593,128.25,128.24,7.0185]
[1764677059062,3.38,128.3,128.26,7.0172]
[1764677059970,3.38,128.28,128.27,0.05225756]
[1764677062570,3.38,128.28,128.24,7.0184]
[1764677062872,3.38,128.28,128.21,81.24412835]
[1764677063462,3.38,128.26,128.23,7.019]
[1764677063759,3.43413649,128.26,128.23,7.07290242]
[1764677063957,3.43413649,128.26,128.23,0.05390242]
[1764677063958,10.45163649,128.26,128.23,0.05390242]
[1764677064163,3.38,128.25,128.23,0.05390242]
[1764677065361,3.38,128.24,128.23,0.05390242]
[1764677067864,3.38,128.24,128.21,7.0199]
[1764677068875,3.38,128.24,128.21,7.06976772]
[1764677070783,3.43413649,128.26,128.22,7.0194]
[1764677071165,3.43413649,128.26,128.21,62.04986772]
[1764677071977,3.43413649,128.26,128.21,128.82986772]
[1764677072373,3.43413649,128.26,128.23,7.0188]
[1764677073272,10.45163649,128.26,128.21,135.84976772]
[1764677073473,3.17,128.25,128.21,128.82986772]
[1764677075384,3.17,128.25,128.23,7.019]
[1764677075886,3.17,128.25,128.21,135.84956772]
[1764677076480,3.17,128.25,128.22,7.0194]
[1764677077981,3.17,128.25,128.23,7.019]
[1764677078284,3.17,128.25,128.21,128.82986772]
[1764677078285,0.05413649,128.26,128.21,128.82986772]
[1764677078488,0.05413649,128.26,128.23,14.46412835]
[1764677078681,0.05413649,128.26,128.24,1.9956142]
[1764677078883,0.05413649,128.26,128.24,16.5152548]
[1764677079877,0.05413649,128.26,128.25,7.018]
[1764677081978,0.05413649,128.26,128.25,30.32093262]
[1764677083385,0.05413649,128.26,128.25,111.54506097]
[1764677083789,3.28,128.29,128.26,7.0171]
[1764677084793,3.33967158,128.29,128.26,7.0749949]
[1764677086986,3.33967158,128.29,128.27,7.0168]
[1764677087986,3.33967158,128.29,128.28,7.0163]
[1764677088387,0.05967158,128.29,128.28,7.0163]
[1764677089196,3.33967158,128.29,128.28,7.0163]
[1764677092400,0.05967158,128.29,128.28,7.0163]
[1764677092702,3.33967158,128.29,128.28,7.0163]
[1764677093404,0.05967158,128.29,128.28,7.0163]
[1764677095297,3.28,128.33,128.3,7.0152]
[1764677095807,109.0634,128.38,128.28,16.45974255]
[1764677095808,10.293,128.35,128.28,16.45974255]
[1764677096306,0.05588717,128.33,128.3,0.05316413]
[1764677096900,0.05588717,128.33,128.3,2.04877833]
[1764677098410,0.05588717,128.33,128.32,7.0142]
[1764677098914,3.28,128.37,128.32,1.9956142]
[1764677099716,3.33537824,128.36,128.33,0.05148059]
[1764677101305,3.33537824,128.36,128.34,7.0127]
[1764677102218,0.05537824,128.36,128.34,7.0127]
[1764677102612,3.33537824,128.36,128.34,7.0127]
[1764677102918,3.33537824,128.36,128.35,7.0125]
[1764677104718,0.05537824,128.36,128.35,7.0125]
[1764677105312,3.28,128.4,128.35,7.0125]
[1764677106018,3.28,128.4,128.36,7.0119]
[1764677106215,0.05567174,128.39,128.37,0.05107249]
[1764677106418,3.28,128.38,128.37,0.05107249]
[1764677106609,3.28,128.38,128.29,109.1312]
[1764677106814,3.28,128.36,128.28,68.7156142]
[1764677107122,3.28,128.36,128.27,109.1489]
[1764677107123,3.28,128.34,128.3,7.0147]
[1764677107719,3.28,128.32,128.31,0.05394846]
[1764677114027,10.2942,128.32,128.31,0.05394846]
[1764677118327,3.36,128.29,128.25,23.30293262]
[1764677118524,3.36,128.29,128.24,1.9956142]
[1764677118924,3.36,128.29,128.24,16.45974255]
[1764677119227,3.36,128.29,128.25,7.0178]
[1764677119529,0.05761643,128.28,128.26,0.04987888]
[1764677119726,0.05626339,128.28,128.27,7.0169]
[1764677119926,7.0139,128.33,128.27,14.46412835]
[1764677119927,10.3739,128.33,128.27,14.46412835]
[1764677120121,3.36,128.32,128.28,1.9956142]
[1764677121029,3.41447683,128.31,128.29,0.05923481]
[1764677121421,3.41447683,128.31,128.29,7.07493481]
[1764677122526,0.05447683,128.31,128.29,7.07493481]
[1764677122927,0.05447683,128.31,128.3,7.0152]
[1764677126135,0.05447683,128.31,128.3,9.0108142]
[1764677126328,0.05447683,128.31,128.3,23.47494255]
[1764677126829,0.05447683,128.31,128.3,9.0108142]
[1764677127027,0.05447683,128.31,128.3,23.47494255]
[1764677127534,0.05447683,128.31,128.3,7.0152]
[1764677128730,3.36,128.34,128.33,7.0136]
[1764677129133,3.36,128.37,128.31,123.58002835]
[1764677129730,3.41420329,128.35,128.33,0.05350255]
[1764677130640,3.41420329,128.35,128.34,7.0131]
[1764677131129,0.05420329,128.35,128.34,7.0131]
[1764677133128,3.12,128.41,128.34,125.55109618]
[1764677133326,3.12,128.41,128.35,14.46438198]
[1764677133528,3.12,128.41,128.35,123.54468198]
[1764677134238,3.16850109,128.39,128.37,0.05991361]
[1764677134440,3.16850109,128.39,128.38,7.0107]
[1764677136036,3.12,128.42,128.37,0.05991361]
[1764677136336,3.12,128.42,128.38,1.9956142]
[1764677136537,3.12,128.42,128.37,14.46438198]
[1764677136832,3.12,128.42,128.36,83.15999618]
[1764677137034,3.12,128.42,128.39,7.0099]
[1764677137241,3.12,128.42,128.39,0.05493237]
[1764677137439,3.12,128.44,128.4,1.9956142]
[1764677137640,3.12,128.44,128.41,0.05403312]
[1764677138240,3.12,128.46,128.41,14.5184151]
[1764677138440,3.12,128.46,128.42,0.05630673]
[1764677141141,3.41036722,128.45,128.39,7.0099]
[1764677141840,3.36,128.43,128.39,7.0099]
[1764677142033,3.36,128.41,128.4,0.05993921]
[1764677151249,3.36,128.39,128.35,7.0125]
[1764677151551,3.36,128.39,128.34,66.68]
[1764677151749,3.36,128.39,128.33,3.11086267]
[1764677151950,3.36,128.38,128.34,7.013]
[1764677152446,3.36,128.36,128.35,0.05103879]
[1764677152646,3.36,128.34,128.28,14.46438198]
[1764677152852,3.36,128.34,128.26,14.46438198]
[1764677153751,0.05739216,128.31,128.29,0.05876077]
[1764677154456,0.05739216,128.31,128.29,62.05876077]
[1764677155247,3.36,128.36,128.29,171.19056077]
[1764677155445,3.36,128.36,128.29,185.59618198]
[1764677155643,3.36,128.36,128.3,66.68]
[1764677156359,0.05223284,128.34,128.32,7.0687242]
[1764677156759,3.36,128.39,128.32,0.0547242]
[1764677156961,3.36,128.38,128.34,7.0128]
[1764677158061,3.41765973,128.37,128.35,0.05827326]
[1764677158561,0.05765973,128.37,128.35,7.07057326]
[1764677161758,3.41765973,128.37,128.35,7.07057326]
[1764677161962,0.05765973,128.37,128.35,7.07057326]
[1764677167262,3.41765973,128.37,128.35,0.05827326]
[1764677169269,3.41765973,128.37,128.35,14.52265524]
[1764677169668,0.05765973,128.37,128.35,21.53465524]
[1764677174967,0.05765973,128.37,128.36,14.46438198]
[1764677176863,3.15765973,128.37,128.35,14.52265524]
[1764677177063,3.15765973,128.37,128.35,0.05827326]
[1764677177770,10.112,128.36,128.35,0.05827326]
[1764677178367,3.1,128.33,128.31,14.46438198]
[1764677178965,3.1,128.32,128.3,14.46438198]
[1764677179271,10.1141,128.33,128.3,14.46438198]
[1764677179468,0.0509379,128.32,128.3,14.52011066]
[1764677180473,3.1509379,128.32,128.3,14.52011066]
[1764677180866,0.0509379,128.32,128.3,14.52011066]
[1764677181064,0.0509379,128.32,128.3,21.53531066]
[1764677183278,109.0713,128.37,128.3,21.53531066]
[1764677183279,178.8257,128.4,128.31,14.46438198]
[1764677183481,112.1201,128.43,128.35,14.46438198]
[1764677183679,3.1,128.43,128.37,14.46438198]
[1764677184378,0.05966945,128.41,128.39,0.05648463]
[1764677184574,0.05966945,128.41,128.4,9.61637188]
[1764677188081,0.05966945,128.41,128.4,14.46438198]
[1764677188281,0.05966945,128.41,128.39,21.53106661]
[1764677190284,0.05966945,128.41,128.4,14.46438198]
[1764677190482,3.1,128.45,128.4,14.46438198]
[1764677190684,3.1,128.45,128.42,9.59996333]
[1764677191374,3.1,128.45,128.42,9.65335993]
[1764677192387,3.1,128.45,128.42,7.0619966]
[1764677193788,3.1,128.47,128.43,7.0081]
[1764677196390,10.1061,128.47,128.42,0.0533966]
[1764677196587,3.23,128.46,128.42,0.0533966]
[1764677196988,3.23,128.43,128.42,0.0533966]
[1764677205496,10.3871,128.45,128.42,0.0533966]
[1764677206195,3.38,128.44,128.42,0.0533966]
[1764677206388,3.38,128.44,128.42,7.0620966]
[1764677207997,3.38,128.46,128.43,7.0081]
[1764677210094,3.38,128.49,128.42,2.0443132]
[1764677210298,3.38,128.49,128.44,9.59996333]
[1764677210597,3.38,128.49,128.45,0.05550477]
[1764677211393,3.38,128.49,128.46,7.0065]
[1764677211895,3.38,128.49,128.45,0.05550477]
[1764677212488,3.38,128.48,128.45,7.06250477]
[1764677213199,3.38,128.49,128.45,7.06250477]
[1764677213801,3.38,128.49,128.46,7.0062]
[1764677214403,3.38,128.52,128.47,7.006]
[1764677214596,3.38,128.52,128.48,0.05948238]
[1764677215898,10.3833,128.52,128.48,0.05948238]
[1764677216095,108.9086,128.56,128.48,0.05948238]
[1764677216397,7.0031,128.53,128.51,0.05450957]
[1764677216601,3.38,128.52,128.51,0.05450957]
[1764677218996,3.38,128.54,128.51,0.05450957]
[1764677219797,10.3827,128.53,128.51,0.05450957]
[1764677220004,3.38,128.52,128.51,0.05450957]
[1764677220699,3.38,128.6,128.51,66.67450957]
[1764677220902,3.38,128.6,128.54,0.05664413]
[1764677221894,3.38,128.56,128.54,0.05664413]
[1764677222093,3.38,128.55,128.49,76.21996333]
[1764677222293,3.38,128.53,128.46,187.19837993]
[1764677222495,7.23309402,128.71,128.58,326.6601]
[1764677222690,19.41881828,128.8,128.58,326.6601]
[1764677222691,108.6896,128.82,128.72,108.7691]
[1764677222890,108.6744,128.84,128.73,108.7613]
[1764677223104,176.1579,128.83,128.75,1.9909166]
[1764677223400,0.05895191,128.8,128.72,1.9909166]
[1764677223600,108.7032,128.8,128.74,1.9909166]
[1764677224197,6.9886,128.79,128.75,7.53128427]
[1764677224407,0.05478906,128.78,128.76,7.58630474]
[1764677224594,3.38,128.77,128.71,11.63417625]
[1764677224796,3.38,128.77,128.72,7.5143123]
[1764677224999,3.38,128.77,128.73,7.5143123]
[1764677225206,3.38,128.77,128.74,7.5143123]
[1764677225410,3.38,128.77,128.75,7.5143123]
[1764677225600,3.43495669,128.77,128.76,0.00192094]
[1764677225909,3.43495669,128.77,128.71,11.63417625]
[1764677226498,3.38,128.76,128.68,14.31537625]
[1764677226696,3.43311191,128.73,128.71,0.04989613]